[Event "Titled Tuesday Blitz December 27 Early 2022"]
[White "Legenia, Artem"]
[Black "Gerbelli Neto, Eduardo"]
[WhiteFideId "14136945"]
[BlackFideId "2103281"]
[WhiteElo "2092"]
[BlackElo "2114"]
[Result "1-0"]
[Round "10"]
[TimeControl "180+2"]
[Date "2022.12.27"]
[WhiteClock "0:01:53"]
[BlackClock "0:00:02"]

1. d4 {[%clk 0:02:58]}  d5 {[%clk 0:02:59]} 2. Nf3 {[%clk 0:02:59]}  Nf6 {[%clk 0:02:59]} 3. Bf4 {[%clk 0:02:59]}  Bf5 {[%clk 0:02:58]} 4. e3 {[%clk 0:02:59]}  e6 {[%clk 0:02:58]} 5. Bd3 {[%clk 0:02:59]}  Bg6 {[%clk 0:02:56]} 6. Ne5 {[%clk 0:02:59]}  Nbd7 {[%clk 0:02:52]} 7. Nxg6 {[%clk 0:02:57]}  hxg6 {[%clk 0:02:53]} 8. c3 {[%clk 0:02:57]}  Bd6 {[%clk 0:02:50]} 9. O-O {[%clk 0:02:54]}  e5 {[%clk 0:02:46]} 10. dxe5 {[%clk 0:02:54]}  Nxe5 {[%clk 0:02:46]} 11. Be2 {[%clk 0:02:53]}  Qe7 {[%clk 0:02:38]} 12. Nd2 {[%clk 0:02:51]}  O-O-O {[%clk 0:02:05]} 13. h3 {[%clk 0:02:47]}  Ne4 {[%clk 0:01:58]} 14. Nxe4 {[%clk 0:02:40]}  dxe4 {[%clk 0:01:58]} 15. Qa4 {[%clk 0:02:40]}  g5 {[%clk 0:01:51]} 16. Bg3 {[%clk 0:02:37]}  Nc6 {[%clk 0:01:36]} 17. Bxd6 {[%clk 0:02:32]}  Rxd6 {[%clk 0:01:37]} 18. Bg4+ {[%clk 0:02:27]}  Kb8 {[%clk 0:01:37]} 19. Rad1 {[%clk 0:02:27]}  Rhd8 {[%clk 0:01:35]} 20. Rxd6 {[%clk 0:02:27]}  Rxd6 {[%clk 0:01:35]} 21. Rd1 {[%clk 0:02:27]}  Rxd1+ {[%clk 0:01:16]} 22. Qxd1 {[%clk 0:02:27]}  g6 {[%clk 0:01:14]} 23. Qd5 {[%clk 0:02:26]}  a6 {[%clk 0:00:50]} 24. Be2 {[%clk 0:02:25]}  Ka7 {[%clk 0:00:42]} 25. Bc4 {[%clk 0:02:20]}  f6 {[%clk 0:00:42]} 26. b4 {[%clk 0:02:16]}  Qe5 {[%clk 0:00:34]} 27. Qxe5 {[%clk 0:02:14]}  Nxe5 {[%clk 0:00:34]} 28. Bd5 {[%clk 0:02:11]}  f5 {[%clk 0:00:31]} 29. Kf1 {[%clk 0:02:10]}  c6 {[%clk 0:00:30]} 30. Bb3 {[%clk 0:02:10]}  g4 {[%clk 0:00:26]} 31. hxg4 {[%clk 0:02:09]}  Nxg4 {[%clk 0:00:27]} 32. Ke2 {[%clk 0:02:07]}  Kb6 {[%clk 0:00:27]} 33. f3 {[%clk 0:02:08]}  exf3+ {[%clk 0:00:21]} 34. gxf3 {[%clk 0:02:07]}  Ne5 {[%clk 0:00:22]} 35. f4 {[%clk 0:02:06]}  Ng4 {[%clk 0:00:04]} 36. Bf7 {[%clk 0:02:05]}  c5 {[%clk 0:00:02]} 37. a4 {[%clk 0:02:03]}  cxb4 {[%clk 0:00:01]} 38. cxb4 {[%clk 0:02:03]}  a5 {[%clk 0:00:02]} 39. bxa5+ {[%clk 0:02:00]}  Kxa5 {[%clk 0:00:03]} 40. Bxg6 {[%clk 0:02:00]}  Nh6 {[%clk 0:00:03]} 41. Be8 {[%clk 0:01:59]}  b6 {[%clk 0:00:03]} 42. Kd3 {[%clk 0:01:57]}  Ng4 {[%clk 0:00:04]} 43. Bd7 {[%clk 0:01:55]}  Nf2+ {[%clk 0:00:04]} 44. Kd4 {[%clk 0:01:55]}  Ne4 {[%clk 0:00:01]} 45. Bxf5 {[%clk 0:01:53]}  Nd6 {[%clk 0:00:02]} 46. Bd7 {[%clk 0:01:53]} 1-0


[Site "https://www.chess.com"]

[Event "Titled Tuesday Blitz December 27 Early 2022"]
[White "Ljukin, Sergei"]
[Black "Iskusnyh, Sergei"]
[WhiteFideId "14102200"]
[BlackFideId "4120027"]
[WhiteElo "2362"]
[BlackElo "2440"]
[Result "0-1"]
[Round "10"]
[TimeControl "180+2"]
[Date "2022.12.27"]
[WhiteClock "0:01:23"]
[BlackClock "0:02:50"]

1. e4 {[%clk 0:01:28]}  e6 {[%clk 0:02:53]} 2. d4 {[%clk 0:01:28]}  d5 {[%clk 0:02:53]} 3. Nc3 {[%clk 0:01:28]}  Nf6 {[%clk 0:02:53]} 4. Bg5 {[%clk 0:01:26]}  dxe4 {[%clk 0:02:53]} 5. Nxe4 {[%clk 0:01:25]}  Nbd7 {[%clk 0:02:53]} 6. Nf3 {[%clk 0:01:25]}  h6 {[%clk 0:02:53]} 7. Nxf6+ {[%clk 0:01:25]}  Nxf6 {[%clk 0:02:54]} 8. Be3 {[%clk 0:01:25]}  Bd6 {[%clk 0:02:53]} 9. Qd2 {[%clk 0:01:25]}  Nd5 {[%clk 0:02:52]} 10. c4 {[%clk 0:01:23]}  Bb4 {[%clk 0:02:50]} 0-1


[Site "https://www.chess.com"]

[Event "Titled Tuesday Blitz December 27 Early 2022"]
[White "Lorenzo De La Riva, Lazaro"]
[Black "Viskelis, Darius"]
[WhiteFideId "2268809"]
[BlackFideId "12800830"]
[WhiteElo "2404"]
[BlackElo "2166"]
[Result "1-0"]
[Round "10"]
[TimeControl "180+2"]
[Date "2022.12.27"]
[WhiteClock "0:01:47"]
[BlackClock "0:01:09"]

1. b3 {[%clk 0:02:54]}  g6 {[%clk 0:02:58]} 2. Bb2 {[%clk 0:02:55]}  Nf6 {[%clk 0:02:58]} 3. Bxf6 {[%clk 0:02:55]}  exf6 {[%clk 0:02:58]} 4. c4 {[%clk 0:02:55]}  Bg7 {[%clk 0:02:58]} 5. Nc3 {[%clk 0:02:54]}  O-O {[%clk 0:02:58]} 6. e3 {[%clk 0:02:53]}  b6 {[%clk 0:02:58]} 7. Nf3 {[%clk 0:02:50]}  Bb7 {[%clk 0:02:58]} 8. Be2 {[%clk 0:02:48]}  d6 {[%clk 0:02:58]} 9. O-O {[%clk 0:02:47]}  Nd7 {[%clk 0:02:58]} 10. Rc1 {[%clk 0:02:46]}  f5 {[%clk 0:02:58]} 11. d4 {[%clk 0:02:45]}  Nf6 {[%clk 0:02:58]} 12. Nd2 {[%clk 0:02:43]}  Re8 {[%clk 0:02:55]} 13. Bf3 {[%clk 0:02:43]}  Ne4 {[%clk 0:02:52]} 14. Ndxe4 {[%clk 0:02:38]}  fxe4 {[%clk 0:02:51]} 15. Be2 {[%clk 0:02:38]}  c5 {[%clk 0:02:48]} 16. d5 {[%clk 0:02:30]}  a6 {[%clk 0:02:48]} 17. Qc2 {[%clk 0:02:26]}  Qe7 {[%clk 0:02:46]} 18. Rfe1 {[%clk 0:02:24]}  h5 {[%clk 0:02:39]} 19. g3 {[%clk 0:02:20]}  h4 {[%clk 0:02:39]} 20. Bf1 {[%clk 0:02:19]}  Bc8 {[%clk 0:02:36]} 21. Bg2 {[%clk 0:02:15]}  Bf5 {[%clk 0:02:24]} 22. a4 {[%clk 0:02:09]}  Rab8 {[%clk 0:02:19]} 23. Ne2 {[%clk 0:02:03]}  g5 {[%clk 0:02:16]} 24. h3 {[%clk 0:02:01]}  Bg6 {[%clk 0:02:07]} 25. gxh4 {[%clk 0:01:56]}  gxh4 {[%clk 0:01:52]} 26. Nf4 {[%clk 0:01:56]}  Bf5 {[%clk 0:01:51]} 27. Kh1 {[%clk 0:01:54]}  Kh7 {[%clk 0:01:39]} 28. Rg1 {[%clk 0:01:53]}  Rg8 {[%clk 0:01:34]} 29. Qe2 {[%clk 0:01:53]}  Bh6 {[%clk 0:01:25]} 30. Qh5 {[%clk 0:01:50]}  Rg7 {[%clk 0:01:09]} 31. Qxf5+ {[%clk 0:01:47]} 1-0


[Site "https://www.chess.com"]

[Event "Titled Tuesday Blitz December 27 Early 2022"]
[White "Magallanes, Rey Jomar"]
[Black "Levitan, Caleb Levi"]
[WhiteFideId "5205948"]
[BlackFideId "14332620"]
[WhiteElo "2052"]
[BlackElo "2129"]
[Result "0-1"]
[Round "10"]
[TimeControl "180+2"]
[Date "2022.12.27"]
[WhiteClock "0:00:56"]
[BlackClock "0:00:23"]

1. e4 {[%clk 0:03:00]}  c5 {[%clk 0:02:58]} 2. Nf3 {[%clk 0:03:00]}  e6 {[%clk 0:02:57]} 3. d4 {[%clk 0:03:01]}  cxd4 {[%clk 0:02:58]} 4. Nxd4 {[%clk 0:03:01]}  a6 {[%clk 0:02:57]} 5. Bd3 {[%clk 0:03:00]}  Bc5 {[%clk 0:02:56]} 6. Nb3 {[%clk 0:03:00]}  Ba7 {[%clk 0:02:55]} 7. Qe2 {[%clk 0:02:58]}  Nc6 {[%clk 0:02:49]} 8. Be3 {[%clk 0:02:56]}  b5 {[%clk 0:02:41]} 9. O-O {[%clk 0:02:55]}  d6 {[%clk 0:02:40]} 10. N1d2 {[%clk 0:02:53]}  Bb7 {[%clk 0:02:38]} 11. Qg4 {[%clk 0:02:49]}  Qf6 {[%clk 0:02:33]} 12. Bg5 {[%clk 0:02:36]}  Qg6 {[%clk 0:02:22]} 13. Qg3 {[%clk 0:02:03]}  h6 {[%clk 0:01:57]} 14. Bf4 {[%clk 0:02:02]}  Qxg3 {[%clk 0:01:56]} 15. Bxg3 {[%clk 0:02:03]}  e5 {[%clk 0:01:45]} 16. c4 {[%clk 0:02:01]}  Nb4 {[%clk 0:01:22]} 17. Bb1 {[%clk 0:02:00]}  Nf6 {[%clk 0:01:17]} 18. a3 {[%clk 0:02:00]}  Nc6 {[%clk 0:01:14]} 19. Kh1 {[%clk 0:01:54]}  Nd4 {[%clk 0:01:05]} 20. Nxd4 {[%clk 0:01:53]}  Bxd4 {[%clk 0:01:03]} 21. cxb5 {[%clk 0:01:50]}  axb5 {[%clk 0:00:55]} 22. Bd3 {[%clk 0:01:49]}  Bxb2 {[%clk 0:00:42]} 23. Bxb5+ {[%clk 0:01:49]}  Ke7 {[%clk 0:00:41]} 24. Rab1 {[%clk 0:01:49]}  Bxa3 {[%clk 0:00:40]} 25. Bd3 {[%clk 0:01:46]}  Rhb8 {[%clk 0:00:32]} 26. Nc4 {[%clk 0:01:45]}  Bc5 {[%clk 0:00:23]} 27. f4 {[%clk 0:01:41]}  Bxe4 {[%clk 0:00:19]} 28. Rbd1 {[%clk 0:01:33]}  Bxd3 {[%clk 0:00:19]} 29. Rxd3 {[%clk 0:01:34]}  e4 {[%clk 0:00:18]} 30. Rdd1 {[%clk 0:01:34]}  d5 {[%clk 0:00:17]} 31. Ne5 {[%clk 0:01:34]}  Ra6 {[%clk 0:00:10]} 32. Rc1 {[%clk 0:01:31]}  Bd6 {[%clk 0:00:09]} 33. Nc6+ {[%clk 0:01:29]}  Rxc6 {[%clk 0:00:09]} 34. Rxc6 {[%clk 0:01:30]}  d4 {[%clk 0:00:08]} 35. Rxd6 {[%clk 0:01:30]}  Kxd6 {[%clk 0:00:06]} 36. f5+ {[%clk 0:01:31]}  Kd5 {[%clk 0:00:06]} 37. Bxb8 {[%clk 0:01:32]}  e3 {[%clk 0:00:06]} 38. Bf4 {[%clk 0:01:30]}  Ke4 {[%clk 0:00:04]} 39. g3 {[%clk 0:01:24]}  e2 {[%clk 0:00:03]} 40. Re1 {[%clk 0:01:23]}  Kf3 {[%clk 0:00:02]} 41. Kg1 {[%clk 0:01:22]}  d3 {[%clk 0:00:03]} 42. Ra1 {[%clk 0:01:12]}  Ne4 {[%clk 0:00:03]} 43. Re1 {[%clk 0:00:59]}  d2 {[%clk 0:00:03]} 44. Bxd2 {[%clk 0:00:59]}  Nxd2 {[%clk 0:00:04]} 45. g4 {[%clk 0:00:58]}  Ke3 {[%clk 0:00:04]} 46. Kg2 {[%clk 0:00:47]}  Nf3 {[%clk 0:00:05]} 47. Rxe2+ {[%clk 0:00:46]}  Kxe2 {[%clk 0:00:05]} 48. Kg3 {[%clk 0:00:45]}  Ke3 {[%clk 0:00:06]} 49. h4 {[%clk 0:00:45]}  f6 {[%clk 0:00:06]} 50. h5 {[%clk 0:00:45]}  Ne5 {[%clk 0:00:06]} 51. Kh4 {[%clk 0:00:44]}  Kf3 {[%clk 0:00:06]} 52. Kh3 {[%clk 0:00:44]}  Nxg4 {[%clk 0:00:06]} 53. Kh4 {[%clk 0:00:45]}  Kf4 {[%clk 0:00:07]} 54. Kh3 {[%clk 0:00:46]}  Kxf5 {[%clk 0:00:08]} 55. Kh4 {[%clk 0:00:46]}  Kf4 {[%clk 0:00:09]} 56. Kh3 {[%clk 0:00:46]}  Kg5 {[%clk 0:00:10]} 57. Kg3 {[%clk 0:00:46]}  Kxh5 {[%clk 0:00:11]} 58. Kf4 {[%clk 0:00:46]}  g5+ {[%clk 0:00:12]} 59. Kf5 {[%clk 0:00:46]}  Ne3+ {[%clk 0:00:11]} 60. Kxf6 {[%clk 0:00:46]}  g4 {[%clk 0:00:12]} 61. Ke5 {[%clk 0:00:47]}  g3 {[%clk 0:00:13]} 62. Kf4 {[%clk 0:00:47]}  g2 {[%clk 0:00:13]} 63. Kxe3 {[%clk 0:00:48]}  g1=Q+ {[%clk 0:00:14]} 64. Kf4 {[%clk 0:00:49]}  Kg6 {[%clk 0:00:14]} 65. Ke5 {[%clk 0:00:50]}  h5 {[%clk 0:00:15]} 66. Ke4 {[%clk 0:00:51]}  h4 {[%clk 0:00:16]} 67. Kd5 {[%clk 0:00:51]}  h3 {[%clk 0:00:17]} 68. Kc6 {[%clk 0:00:52]}  h2 {[%clk 0:00:18]} 69. Kd7 {[%clk 0:00:53]}  h1=Q {[%clk 0:00:19]} 70. Ke7 {[%clk 0:00:54]}  Qhg2 {[%clk 0:00:20]} 71. Kf8 {[%clk 0:00:54]}  Q1f1+ {[%clk 0:00:20]} 72. Kg8 {[%clk 0:00:55]}  Qge2 {[%clk 0:00:21]} 73. Kh8 {[%clk 0:00:55]}  Qfd1 {[%clk 0:00:22]} 74. Kg8 {[%clk 0:00:56]}  Qd8# {[%clk 0:00:23]} 0-1


[Site "https://www.chess.com"]

[Event "Titled Tuesday Blitz December 27 Early 2022"]
[White "Martinez Alcantara, Jose Eduardo"]
[Black "Tactrics"]
[WhiteFideId "3805662"]
[WhiteElo "2619"]
[BlackElo "2976"]
[Result "1-0"]
[Round "10"]
[TimeControl "180+2"]
[Date "2022.12.27"]
[WhiteClock "0:00:24"]
[BlackClock "0:00:03"]

1. e4 {[%clk 0:03:00]}  e6 {[%clk 0:03:00]} 2. d4 {[%clk 0:03:00]}  d5 {[%clk 0:03:01]} 3. exd5 {[%clk 0:03:01]}  exd5 {[%clk 0:03:02]} 4. Nf3 {[%clk 0:03:01]}  Bd6 {[%clk 0:03:02]} 5. Bd3 {[%clk 0:03:01]}  Ne7 {[%clk 0:03:03]} 6. Nc3 {[%clk 0:03:00]}  a6 {[%clk 0:03:02]} 7. O-O {[%clk 0:02:59]}  Nbc6 {[%clk 0:03:02]} 8. Re1 {[%clk 0:02:59]}  O-O {[%clk 0:03:02]} 9. h3 {[%clk 0:02:54]}  Nb4 {[%clk 0:03:02]} 10. Ne5 {[%clk 0:02:37]}  Nxd3 {[%clk 0:03:00]} 11. cxd3 {[%clk 0:02:38]}  Bf5 {[%clk 0:02:52]} 12. Qf3 {[%clk 0:02:29]}  c6 {[%clk 0:02:41]} 13. Bf4 {[%clk 0:02:13]}  Re8 {[%clk 0:02:39]} 14. Bg3 {[%clk 0:02:10]}  f6 {[%clk 0:02:34]} 15. Ng4 {[%clk 0:02:08]}  Bg6 {[%clk 0:02:24]} 16. Bh4 {[%clk 0:01:37]}  Rf8 {[%clk 0:02:09]} 17. Ne3 {[%clk 0:01:37]}  Qd7 {[%clk 0:02:07]} 18. Bg3 {[%clk 0:01:37]}  Rae8 {[%clk 0:02:03]} 19. Rad1 {[%clk 0:01:33]}  Bxg3 {[%clk 0:01:56]} 20. Qxg3 {[%clk 0:01:34]}  Nf5 {[%clk 0:01:52]} 21. Nxf5 {[%clk 0:01:34]}  Bxf5 {[%clk 0:01:49]} 22. Na4 {[%clk 0:01:30]}  Rxe1+ {[%clk 0:01:40]} 23. Rxe1 {[%clk 0:01:31]}  Re8 {[%clk 0:01:39]} 24. Rxe8+ {[%clk 0:01:31]}  Qxe8 {[%clk 0:01:40]} 25. Nc5 {[%clk 0:01:32]}  Qc8 {[%clk 0:01:30]} 26. Qd6 {[%clk 0:01:21]}  b6 {[%clk 0:01:27]} 27. Na4 {[%clk 0:01:22]}  Bxd3 {[%clk 0:01:17]} 28. Nxb6 {[%clk 0:01:21]}  Qe8 {[%clk 0:01:18]} 29. Kh2 {[%clk 0:01:07]}  h6 {[%clk 0:01:14]} 30. Nd7 {[%clk 0:00:54]}  Bf5 {[%clk 0:01:06]} 31. Nc5 {[%clk 0:00:48]}  a5 {[%clk 0:01:01]} 32. Qf4 {[%clk 0:00:49]}  Bg6 {[%clk 0:00:57]} 33. Qd2 {[%clk 0:00:49]}  Kh7 {[%clk 0:00:53]} 34. Kg1 {[%clk 0:00:46]}  Qd8 {[%clk 0:00:47]} 35. Nb7 {[%clk 0:00:41]}  Qb6 {[%clk 0:00:42]} 36. Nxa5 {[%clk 0:00:42]}  c5 {[%clk 0:00:30]} 37. dxc5 {[%clk 0:00:42]}  Qxc5 {[%clk 0:00:30]} 38. b4 {[%clk 0:00:43]}  Qb5 {[%clk 0:00:27]} 39. Nb3 {[%clk 0:00:42]}  Be4 {[%clk 0:00:24]} 40. Nd4 {[%clk 0:00:37]}  Qa4 {[%clk 0:00:24]} 41. b5 {[%clk 0:00:32]}  Qa3 {[%clk 0:00:20]} 42. b6 {[%clk 0:00:29]}  Qa6 {[%clk 0:00:16]} 43. Qb2 {[%clk 0:00:29]}  Qb7 {[%clk 0:00:11]} 44. Qb3 {[%clk 0:00:29]}  Qc8 {[%clk 0:00:08]} 45. b7 {[%clk 0:00:26]}  Qb8 {[%clk 0:00:04]} 46. Nc6 {[%clk 0:00:24]}  Qg3 {[%clk 0:00:03]} 47. Qxg3 {[%clk 0:00:24]} 1-0


[Site "https://www.chess.com"]

[Event "Titled Tuesday Blitz December 27 Early 2022"]
[White "Matveeva, Olga"]
[Black "Sreyas Payyappat"]
[WhiteFideId "24107018"]
[BlackFideId "46674969"]
[WhiteElo "2128"]
[BlackElo "2076"]
[Result "1-0"]
[Round "10"]
[TimeControl "180+2"]
[Date "2022.12.27"]
[WhiteClock "0:01:48"]
[BlackClock "0:01:54"]

1. d4 {[%clk 0:03:00]}  Nf6 {[%clk 0:02:59]} 2. c4 {[%clk 0:03:01]}  c5 {[%clk 0:02:57]} 3. d5 {[%clk 0:03:00]}  e6 {[%clk 0:02:57]} 4. Nc3 {[%clk 0:03:00]}  exd5 {[%clk 0:02:58]} 5. cxd5 {[%clk 0:03:00]}  d6 {[%clk 0:02:58]} 6. e4 {[%clk 0:02:59]}  g6 {[%clk 0:02:55]} 7. h3 {[%clk 0:02:59]}  Bg7 {[%clk 0:02:54]} 8. Nf3 {[%clk 0:03:00]}  O-O {[%clk 0:02:55]} 9. Bd3 {[%clk 0:03:00]}  c4 {[%clk 0:02:53]} 10. Bxc4 {[%clk 0:02:56]}  Nxe4 {[%clk 0:02:47]} 11. Nxe4 {[%clk 0:02:55]}  Re8 {[%clk 0:02:47]} 12. Ng5 {[%clk 0:02:27]}  f5 {[%clk 0:02:40]} 13. Ne6 {[%clk 0:02:12]}  Bxe6 {[%clk 0:02:13]} 14. dxe6 {[%clk 0:02:12]}  Kh8 {[%clk 0:02:09]} 15. Ng5 {[%clk 0:02:07]}  Qf6 {[%clk 0:02:03]} 16. O-O {[%clk 0:02:01]}  Nc6 {[%clk 0:01:56]} 17. Nf7+ {[%clk 0:01:58]}  Kg8 {[%clk 0:01:54]} 18. Nxd6 {[%clk 0:01:58]}  Re7 {[%clk 0:01:54]} 19. Nf7 {[%clk 0:01:48]} 1-0


[Site "https://www.chess.com"]

[Event "Titled Tuesday Blitz December 27 Early 2022"]
[White "Melikhov, Evgeny V."]
[Black "Orujov, Elshad"]
[WhiteFideId "4122046"]
[BlackFideId "13403540"]
[WhiteElo "2269"]
[BlackElo "2304"]
[Result "1-0"]
[Round "10"]
[TimeControl "180+2"]
[Date "2022.12.27"]
[WhiteClock "0:00:59"]
[BlackClock "0:02:02"]

1. d4 {[%clk 0:03:00]}  Nf6 {[%clk 0:02:59]} 2. c4 {[%clk 0:03:01]}  e6 {[%clk 0:03:00]} 3. Nc3 {[%clk 0:03:01]}  d5 {[%clk 0:03:00]} 4. cxd5 {[%clk 0:03:00]}  exd5 {[%clk 0:03:01]} 5. Bg5 {[%clk 0:02:59]}  Be7 {[%clk 0:03:01]} 6. e3 {[%clk 0:02:59]}  O-O {[%clk 0:03:01]} 7. Bd3 {[%clk 0:02:59]}  c6 {[%clk 0:03:01]} 8. Qc2 {[%clk 0:02:59]}  Nbd7 {[%clk 0:03:01]} 9. Nf3 {[%clk 0:02:58]}  Re8 {[%clk 0:03:01]} 10. O-O {[%clk 0:02:58]}  Nf8 {[%clk 0:03:02]} 11. h3 {[%clk 0:02:58]}  Ng6 {[%clk 0:03:02]} 12. Ne5 {[%clk 0:02:58]}  Nxe5 {[%clk 0:03:00]} 13. dxe5 {[%clk 0:02:58]}  Ne4 {[%clk 0:03:00]} 14. Bxe7 {[%clk 0:02:52]}  Qxe7 {[%clk 0:02:57]} 15. Nxe4 {[%clk 0:02:52]}  dxe4 {[%clk 0:02:57]} 16. Bxe4 {[%clk 0:02:52]}  Qxe5 {[%clk 0:02:58]} 17. Bxh7+ {[%clk 0:02:52]}  Kh8 {[%clk 0:02:58]} 18. Bd3 {[%clk 0:02:49]}  Be6 {[%clk 0:02:56]} 19. Qe2 {[%clk 0:02:41]}  Rad8 {[%clk 0:02:55]} 20. Rfd1 {[%clk 0:02:38]}  Kg8 {[%clk 0:02:52]} 21. b3 {[%clk 0:02:34]}  Rd7 {[%clk 0:02:49]} 22. Bc4 {[%clk 0:02:31]}  Red8 {[%clk 0:02:45]} 23. Bxe6 {[%clk 0:02:29]}  Qxe6 {[%clk 0:02:46]} 24. Rxd7 {[%clk 0:02:25]}  Rxd7 {[%clk 0:02:46]} 25. Rd1 {[%clk 0:02:25]}  Rxd1+ {[%clk 0:02:43]} 26. Qxd1 {[%clk 0:02:25]}  Qe5 {[%clk 0:02:41]} 27. Qd4 {[%clk 0:02:23]}  Qa5 {[%clk 0:02:34]} 28. Qa1 {[%clk 0:02:09]}  b5 {[%clk 0:02:29]} 29. g3 {[%clk 0:01:55]}  c5 {[%clk 0:02:29]} 30. Qe5 {[%clk 0:01:38]}  c4 {[%clk 0:02:22]} 31. bxc4 {[%clk 0:01:33]}  Qe1+ {[%clk 0:02:19]} 32. Kg2 {[%clk 0:01:32]}  bxc4 {[%clk 0:02:19]} 33. Qe8+ {[%clk 0:01:29]}  Kh7 {[%clk 0:02:18]} 34. Qe4+ {[%clk 0:01:29]}  g6 {[%clk 0:02:15]} 35. Qxc4 {[%clk 0:01:29]}  a5 {[%clk 0:02:15]} 36. Qxf7+ {[%clk 0:01:28]}  Kh6 {[%clk 0:02:15]} 37. a4 {[%clk 0:01:22]}  Qb4 {[%clk 0:02:14]} 38. Qf4+ {[%clk 0:01:21]}  g5 {[%clk 0:02:12]} 39. Qxb4 {[%clk 0:01:10]}  axb4 {[%clk 0:02:13]} 40. a5 {[%clk 0:01:11]}  b3 {[%clk 0:02:14]} 41. a6 {[%clk 0:01:11]}  b2 {[%clk 0:02:15]} 42. a7 {[%clk 0:01:11]}  b1=Q {[%clk 0:02:16]} 43. a8=Q {[%clk 0:01:12]}  Qb4 {[%clk 0:02:13]} 44. Qd5 {[%clk 0:01:09]}  g4 {[%clk 0:02:10]} 45. Qe6+ {[%clk 0:01:06]}  Kh7 {[%clk 0:02:07]} 46. Qxg4 {[%clk 0:01:03]}  Qb7+ {[%clk 0:02:06]} 47. Qf3 {[%clk 0:01:03]}  Qc7 {[%clk 0:02:05]} 48. g4 {[%clk 0:01:02]}  Qg7 {[%clk 0:02:04]} 49. h4 {[%clk 0:01:02]}  Qh6 {[%clk 0:02:02]} 50. Qf7+ {[%clk 0:00:59]}  Kh8 {[%clk 0:02:02]} 51. Qh5 {[%clk 0:00:59]} 1-0


[Site "https://www.chess.com"]

[Event "Titled Tuesday Blitz December 27 Early 2022"]
[White "Mikhailovsky, Vladimir"]
[Black "Volkov, Maksim"]
[WhiteFideId "34105414"]
[BlackFideId "54123070"]
[WhiteElo "2215"]
[BlackElo "2258"]
[Result "1/2-1/2"]
[Round "10"]
[TimeControl "180+2"]
[Date "2022.12.27"]
[WhiteClock "0:00:14"]
[BlackClock "0:00:11"]

1. e4 {[%clk 0:02:58]}  c5 {[%clk 0:02:59]} 2. c3 {[%clk 0:02:58]}  Nf6 {[%clk 0:02:57]} 3. e5 {[%clk 0:02:58]}  Nd5 {[%clk 0:02:57]} 4. Nf3 {[%clk 0:02:58]}  d6 {[%clk 0:02:55]} 5. Bc4 {[%clk 0:02:54]}  Nb6 {[%clk 0:02:44]} 6. Bb3 {[%clk 0:02:51]}  c4 {[%clk 0:02:24]} 7. Bc2 {[%clk 0:02:51]}  Nc6 {[%clk 0:02:23]} 8. exd6 {[%clk 0:02:38]}  Qxd6 {[%clk 0:02:23]} 9. O-O {[%clk 0:02:38]}  Bg4 {[%clk 0:02:18]} 10. Qe2 {[%clk 0:02:37]}  e6 {[%clk 0:02:17]} 11. b3 {[%clk 0:02:35]}  cxb3 {[%clk 0:02:08]} 12. axb3 {[%clk 0:02:35]}  Qc7 {[%clk 0:02:01]} 13. d4 {[%clk 0:02:31]}  Bd6 {[%clk 0:01:48]} 14. h3 {[%clk 0:02:31]}  Bxf3 {[%clk 0:01:47]} 15. Qxf3 {[%clk 0:02:31]}  Nxd4 {[%clk 0:01:46]} 16. cxd4 {[%clk 0:02:14]}  Qxc2 {[%clk 0:01:45]} 17. Qxb7 {[%clk 0:02:10]}  O-O {[%clk 0:01:38]} 18. Rxa7 {[%clk 0:01:56]}  Rxa7 {[%clk 0:00:56]} 19. Qxa7 {[%clk 0:01:56]}  Qxb3 {[%clk 0:00:57]} 20. Nd2 {[%clk 0:01:52]}  Qb5 {[%clk 0:00:53]} 21. Nf3 {[%clk 0:01:40]}  Qc6 {[%clk 0:00:33]} 22. Qa6 {[%clk 0:01:22]}  Ra8 {[%clk 0:00:32]} 23. Qd3 {[%clk 0:01:21]}  h6 {[%clk 0:00:29]} 24. Bd2 {[%clk 0:01:18]}  Qd5 {[%clk 0:00:27]} 25. Rb1 {[%clk 0:01:14]}  Nc4 {[%clk 0:00:25]} 26. Rc1 {[%clk 0:01:14]}  Rc8 {[%clk 0:00:20]} 27. Be3 {[%clk 0:01:06]}  Be7 {[%clk 0:00:20]} 28. Qb3 {[%clk 0:00:59]}  Bf6 {[%clk 0:00:18]} 29. Nd2 {[%clk 0:00:47]}  Nd6 {[%clk 0:00:18]} 30. Rxc8+ {[%clk 0:00:47]}  Nxc8 {[%clk 0:00:18]} 31. Qb8 {[%clk 0:00:48]}  Qc6 {[%clk 0:00:17]} 32. Ne4 {[%clk 0:00:40]}  Qxe4 {[%clk 0:00:16]} 33. Qxc8+ {[%clk 0:00:40]}  Kh7 {[%clk 0:00:17]} 34. Qd7 {[%clk 0:00:39]}  Kg6 {[%clk 0:00:16]} 35. Qb5 {[%clk 0:00:34]}  h5 {[%clk 0:00:15]} 36. Qd7 {[%clk 0:00:29]}  Qd5 {[%clk 0:00:14]} 37. Qa4 {[%clk 0:00:30]}  Qe4 {[%clk 0:00:14]} 38. Qa7 {[%clk 0:00:28]}  Qb1+ {[%clk 0:00:10]} 39. Kh2 {[%clk 0:00:28]}  Qf5 {[%clk 0:00:11]} 40. Kg1 {[%clk 0:00:19]}  h4 {[%clk 0:00:10]} 41. Qa4 {[%clk 0:00:17]}  Qe4 {[%clk 0:00:10]} 42. Qd1 {[%clk 0:00:17]}  Be7 {[%clk 0:00:07]} 43. Qc1 {[%clk 0:00:14]}  Bf6 {[%clk 0:00:07]} 44. Qd1 {[%clk 0:00:15]}  Qd5 {[%clk 0:00:06]} 45. Qd3+ {[%clk 0:00:15]}  Qf5 {[%clk 0:00:06]} 46. Qd1 {[%clk 0:00:15]}  Qe4 {[%clk 0:00:06]} 47. Kf1 {[%clk 0:00:12]}  Be7 {[%clk 0:00:07]} 48. Qd2 {[%clk 0:00:12]}  f5 {[%clk 0:00:07]} 49. f3 {[%clk 0:00:11]}  Qb1+ {[%clk 0:00:06]} 50. Ke2 {[%clk 0:00:11]}  Bf6 {[%clk 0:00:07]} 51. Kf2 {[%clk 0:00:09]}  Qb5 {[%clk 0:00:07]} 52. Bf4 {[%clk 0:00:09]}  Qd5 {[%clk 0:00:07]} 53. Be3 {[%clk 0:00:09]}  Qd6 {[%clk 0:00:08]} 54. Qd3 {[%clk 0:00:09]}  e5 {[%clk 0:00:07]} 55. d5 {[%clk 0:00:06]}  Be7 {[%clk 0:00:07]} 56. Bd2 {[%clk 0:00:05]}  Qd7 {[%clk 0:00:07]} 57. Ke2 {[%clk 0:00:06]}  Kf6 {[%clk 0:00:07]} 58. Bc3 {[%clk 0:00:06]}  Bd6 {[%clk 0:00:08]} 59. f4 {[%clk 0:00:07]}  Qe7 {[%clk 0:00:06]} 60. Qe3 {[%clk 0:00:07]}  g6 {[%clk 0:00:02]} 61. Qf2 {[%clk 0:00:07]}  Kf7 {[%clk 0:00:02]} 62. fxe5 {[%clk 0:00:05]}  Bxe5 {[%clk 0:00:03]} 63. Kd3 {[%clk 0:00:05]}  Qd6 {[%clk 0:00:02]} 64. Bxe5 {[%clk 0:00:04]}  Qxe5 {[%clk 0:00:02]} 65. Qd4 {[%clk 0:00:04]}  Kf6 {[%clk 0:00:02]} 66. d6 {[%clk 0:00:04]}  Qxd4+ {[%clk 0:00:02]} 67. Kxd4 {[%clk 0:00:05]}  Ke6 {[%clk 0:00:02]} 68. Kc5 {[%clk 0:00:05]}  Kd7 {[%clk 0:00:03]} 69. Kd5 {[%clk 0:00:06]}  g5 {[%clk 0:00:03]} 70. Ke5 {[%clk 0:00:06]}  g4 {[%clk 0:00:02]} 71. Kxf5 {[%clk 0:00:06]}  gxh3 {[%clk 0:00:03]} 72. gxh3 {[%clk 0:00:07]}  Kxd6 {[%clk 0:00:04]} 73. Kg5 {[%clk 0:00:08]}  Ke6 {[%clk 0:00:05]} 74. Kxh4 {[%clk 0:00:08]}  Kf7 {[%clk 0:00:05]} 75. Kh5 {[%clk 0:00:09]}  Kg8 {[%clk 0:00:06]} 76. Kh6 {[%clk 0:00:10]}  Kh8 {[%clk 0:00:07]} 77. Kg6 {[%clk 0:00:10]}  Kg8 {[%clk 0:00:08]} 78. h4 {[%clk 0:00:11]}  Kh8 {[%clk 0:00:08]} 79. h5 {[%clk 0:00:12]}  Kg8 {[%clk 0:00:09]} 80. Kf5 {[%clk 0:00:13]}  Kh8 {[%clk 0:00:09]} 81. h6 {[%clk 0:00:14]}  Kg8 {[%clk 0:00:10]} 82. h7+ {[%clk 0:00:14]}  Kh8 {[%clk 0:00:11]} 83. Ke4 {[%clk 0:00:14]}  Kxh7 {[%clk 0:00:11]} 1/2-1/2


[Site "https://www.chess.com"]